Workbook

Sheet 1. Forside
A1: TREFOR Vand A/S
D8: Bilag A
D13: Indholdsfortegnelse
C16: Fane nr. 2 | D16: Samlet prisloft
C17: Fane nr. 3 | D17: Driftsomkostninger
C18: Fane nr. 4 | D18: Historiske investeringer
C19: Fane nr. 5 | D19: Gennemførte investeringer
C20: Fane nr. 6 | D20: Korrektion investeringer
C21: Fane nr. 7 | D21: Planlagte investeringer
C22: Fane nr. 8 | D22: 1:1 omkostninger
C23: Fane nr. 9 | D23: Miljø- og servicemål
C24: Fane nr. 10 | D24: Nettofinansielle poster
C25: Fane nr. 11 | D25: Over- eller underdækning
C26: Fane nr. 12 | D26: Kontrol med indtægtsrammen og oversigt over ekstraordinære effektiviseringsgevinster

Sheet 2. Samlet prisloft
A1: ='1. Forside'!A1 -> TREFOR Vand A/S
B4: Fane 2. Samlet prisloft for 2015
B6: Driftsomkostninger
B7: Driftsomkostninger i prisloftet for 2014 | C7: ='3. Driftsomkostninger'!C20 -> 54399006.63 | D7: kr.
B8: Bortfald af væsentlige omkostninger | C8: =-'3. Driftsomkostninger'!C16 -> 0 | D8: kr.
B9: Korrektion for prisudviklingen 2014-2015 | C9: ='3. Driftsomkostninger'!C22 -> 43519.20531 | D9: kr.
B10: Forhøjelse til effektivt niveau iht. benchmarkingen | C10: ='3. Driftsomkostninger'!C28 -> 0 | D10: kr.
B11: Korrektion for generelt effektiviseringskrav | C11: =-'3. Driftsomkostninger'!C34 -> -239355.6292 | D11: kr.
B12: Korrektion for individuelt effektiviseringskrav | C12: =-'3. Driftsomkostninger'!C43 -> -1121979.5 | D12: kr.
B13: Driftsomkostninger i alt | C13: =SUM(C7:C12) -> 53081190.71 | D13: kr. | E13: =C13 -> 53081190.71 | F13: kr.
B14: Investeringer
B15: Tillæg for historiske investeringer | C15: ='4. Historiske investeringer'!C9 -> 64713957.3 | D15: kr.
B16: Tillæg for gennemførte investeringer i 2011-2013 | C16: ='5. Gennemførte investeringer'!F35 -> 13474431.12 | D16: kr.
B17: Korrektion af tillæg for planlagte investeringer vedrørende 2013 | C17: ='6. Korrektion investeringer'!C10 -> -609711.2467 | D17: kr.
B18: Tillæg for planlagte investeringer i 2014 og 2015 | C18: ='7. Planlagte investeringer'!F36 -> 6783180 | D18: kr.
B19: Investeringstillæg i alt | C19: =SUM(C15:C18) -> 84361857.18 | D19: kr. | E19: =C19 -> 84361857.18 | F19: kr.
B20: Øvrige omkostninger mv.
B21: Tillæg for 1:1 omkostninger i 2015 | C21: ='8. 1-1 omkostninger'!C9 -> 433000 | D21: kr.
B22: Tillæg for afgift for ledningsført vand i 2015 | C22: ='8. 1-1 omkostninger'!C14 -> 71143815 | D22: kr.
B23: Tillæg vedr. revisorerklæringer og DANVA/FVD-kontingent | C23: ='8. 1-1 omkostninger'!C20 -> 260000 | D23: kr.
B24: Korrektion ift. faktiske 1:1 omkostninger i 2013 | C24: ='8. 1-1 omkostninger'!C26 -> 450441 | D24: kr.
B25: Tillæg for driftsomkostninger til miljø- og servicemål i 2015 | C25: ='9. Miljø- og servicemål'!C13 -> 14394706 | D25: kr.
B26: Korrektion ift. faktiske driftsomkostninger til miljø- og servicemål i 2013 | C26: ='9. Miljø- og servicemål'!C20 -> 0 | D26: kr.
B27: Tillæg/fradrag for nettofinansielle poster i 2015 | C27: ='10. Nettofinansielle poster'!C9 -> 10428000 | D27: kr.
B28: Korrektion ift. faktiske nettofinansielle poster i 2013 | C28: ='10. Nettofinansielle poster'!C16 -> 2897000 | D28: kr.
B29: Øvrige omkostninger mv. i alt | C29: =SUM(C21:C28) -> 100006962 | D29: kr. | E29: =C29 -> 100006962 | F29: kr.
B30: Historisk over- eller underdækning
B31: Tillæg/fradrag for over- eller underdækning til og med 2010 | C31: ='11. Over- eller underdækning'!C11 -> 3887388.876 | D31: kr. | E31: =C31 -> 3887388.876 | F31: kr.
B32: Korrektion i forhold til tidligere indtægtsramme
B33: Korrektion for overholdelse af indtægtsramme i prisloft 2013 | C33: ='12. Kontrol med indtægtsrammen'!E27 -> 85427169.03 | D33: kr. | E33: =C33 -> 85427169.03 | F33: kr.
B34: Samlet prisloft
B35: Indtægtsramme i 2015 | E35: =SUM(E13:E33) -> 326764567.8 | F35: kr.
B36: Debiteret vandmængde i 2013 | E36: 10894918 | F36: m3
B37: Prisloft 2015 | E37: =E35/E36 -> 29.99238432 | F37: kr./m3
B38: Prisloft 2015 ekskl. afgift for ledningsført vand | E38: =(E35-C22)/E36 -> 23.46238428 | F38: kr./m3

Sheet 3. Driftsomkostninger
A1: ='1. Forside'!A1 -> TREFOR Vand A/S
B4: Fane 3. Driftsomkostninger
B6: Driftsomkostningerne i prisloftet for 2014
B7: Korrigerede driftsomkostninger i prisloftet for 2013 (DOiPL 2013) | C7: 55272309 | D7: kr.
B8: Prisfremskrivning 1,5 pct. | C8: =0.015*SUM(C7:C7) -> 829084.635 | D8: kr.
B9: Generelt effektiviseringskrav (0 pct.) | C9: 0 | D9: kr.
B10: Individuelt effektiviseringskrav | C10: -1702387 | D10: kr.
B11: Driftsomkostningerne i prisloftet for 2014 (DOiPL 2014) | C11: =SUM(C7:C10) -> 54399006.63 | D11: kr.
B14: Korrektion for forventet bortfald af væsentlige omkostninger
B15: Selskabets indberettede bortfald af væsentlige omkostninger inden 2015 | C15: 0 | D15: kr.
B16: Korrektion for forventet bortfald | C16: =SUM(C15:C15) -> 0 | D16: kr.
B19: Korrektion for prisudviklingen fra 2014-2015
B20: Driftsomkostningerne i prisloftet for 2014 | C20: =C11-C16 -> 54399006.63 | D20: kr.
B21: Prisudvikling 2014 - 2015 | C21: 0.08 | D21: pct.
B22: Korrektion for prisudvikling | C22: =C20*(C21/100) -> 43519.20531 | D22: kr.
B25: Eventuel forhøjelse til effektivt niveau iht. benchmarkingen
B26: Selskabets effektive driftsomkostninger iht. benchmarkingen | C26: 41408524 | D26: kr.
B27: Selskabets pristalskorrigerede driftsomkostninger i 2015-niveau | C27: =C20+C22 -> 54442525.84 | D27: kr.
B28: Eventuel forhøjelse til effektivt niveau | C28: =IF(C27>C26,0,C26-C27) -> 0 | D28: kr.
B31: Korrektion for generelt effektiviseringskrav
B32: Driftsomkostningerne i prisloftet for 2014 | C32: =C20 -> 54399006.63 | D32: kr.
B33: Generelt effektiviseringskrav | C33: 0.44 | D33: pct.
B34: Endeligt generelt effektiviseringskrav | C34: =C32*(C33/100) -> 239355.6292 | D34: kr.
B37: Korrektion for individuelt effektiviseringskrav
B38: Rå effektiviseringspotentiale | C38: 12990483 | D38: kr.
B39: Effektiviseringspotentiale efter eventuel korrektion for særlige forhold | C39: 12990483 | D39: kr.
B40: Effektiviseringspotentiale efter forsigtighedshensyn | C40: 4487918 | D40: kr.
B41: Effektiviseringspotentiale efter eventuel korrektion for sammensætning af signifikante costdrivere | C41: 4487918 | D41: kr.
B42: Umiddelbart effektiviseringskrav | C42: =C41/4 -> 1121979.5 | D42: kr.
B43: Endeligt individuelt effektiviseringskrav | C43: =IF(C42>0.05*C20,0.05*C20,IF(C42<0.01*C20,0,C42)) -> 1121979.5 | D43: kr.

Sheet 4. Historiske investeringer
A1: ='3. Driftsomkostninger'!A1 -> TREFOR Vand A/S
B4: Fane 4. Historiske investeringer
B6: Tillæg for historiske investeringer
B7: Værdi af selskabets materielle anlægsaktiver pr. 1. januar 2010 | C7: 1661948530 | D7: kr.
B8: Den årlige standardafskrivning på de materielle anlægsaktiver iht. POLKA | C8: 64713957.3 | D8: kr.
B9: Tillæg i alt i 2015 | C9: =C8 -> 64713957.3 | D9: kr.

Sheet 5. Gennemførte investeringer
A1: ='4. Historiske investeringer'!A1 -> TREFOR Vand A/S
B4: Fane 5. Gennemførte investeringer i 2010 - 2013
B6: Tillæg for gennemførte investeringer i 2013
B7: Beskrivelse af investeringen | C7: Årstal | D7: Std. levetid (år) | E7: Anskaffelses-pris (kr.) | F7: Afskrivning
B8: Boring (inkl. etablering, forerør, filter og prøvepumpning) | C8: 2013 | D8: 30 | E8: 589664 | F8: =E8/D8 -> 19655.46667 | G8: kr.
B9: Instrumenter (flowmåler+tryk transducer+alarmer) | C9: 2013 | D9: 10 | E9: 127329 | F9: 12732.9 | G9: kr.
B10: Pumpe inkl. stigrør og forerørsforsejlinger mv. | C10: 2013 | D10: 15 | E10: 415134 | F10: 27675.6 | G10: kr.
B11: Elanlæg | C11: 2013 | D11: 20 | E11: 387733 | F11: 19386.65 | G11: kr.
B12: Råvandsstation komplet montering og boringshus/tørbrønd | C12: 2013 | D12: 30 | E12: 984558 | F12: 32818.6 | G12: kr.
B13: Ø 50mm < Ledningsnet = Ø110 mm | C13: 2013 | D13: 75 | E13: 1972787 | F13: =E13/D13 -> 26303.82667 | G13: kr.
B14: Ø110 mm < Ledningsnet = Ø 250 mm | C14: 2013 | D14: 75 | E14: 723505 | F14: 9646.733333 | G14: kr.
B15: Ø 250 mm < Ledningsnet = Ø 500mm | C15: 2013 | D15: 75 | E15: 25283 | F15: 337.1066667 | G15: kr.
B16: SRO-anlæg, vandværk | C16: 2013 | D16: 10 | E16: 1129947 | F16: 112994.7 | G16: kr.
B17: Elanlæg - vandværk | C17: 2013 | D17: 25 | E17: 2162631 | F17: 86505.24 | G17: kr.
B18: Skyllevand-/slamhåndteringsanlæg - lukkede betonbeholdere | C18: 2013 | D18: 50 | E18: 8624096 | F18: 172481.92 | G18: kr.
B19: Sikring, avanceret (hegne, porte og overvågningssystemer), Mek./EL | C19: 2013 | D19: 25 | E19: 419754 | F19: 16790.16 | G19: kr.
B20: Ø 50mm < Ledningsnet = Ø110 mm | C20: 2013 | D20: 75 | E20: 4206252 | F20: 56083.36 | G20: kr.
B21: Ø110 mm < Ledningsnet = Ø 250 mm | C21: 2013 | D21: 75 | E21: 43013129 | F21: 573508.3867 | G21: kr.
B22: Ø 250 mm < Ledningsnet = Ø 500mm | C22: 2013 | D22: 75 | E22: 4658352 | F22: 62111.36 | G22: kr.
B23: Ventiler på Ø 50mm < Ledningsnet = Ø110 mm | C23: 2013 | D23: 75 | E23: 87333 | F23: 1164.44 | G23: kr.
B24: Pumpestation (inkl. evt. hydrofor)/trykforøger, SRO | C24: 2013 | D24: 10 | E24: 343740 | F24: 34374 | G24: kr.
B25: Pumpestation (inkl. evt. hydrofor)/trykforøger, Mek./EL | C25: 2013 | D25: 25 | E25: 157746 | F25: 6309.84 | G25: kr.
B26: Pumpestation (inkl. evt. hydrofor)/trykforøger, Konstruktioner | C26: 2013 | D26: 50 | E26: 59375 | F26: 1187.5 | G26: kr.
B27: Afregningsmålere, elektroniske = Ø 110mm (Qn 10) | C27: 2013 | D27: 10 | E27: 6391778 | F27: 639177.8 | G27: kr.
B28: SRO-brønd/kvarterbrønd/sektionsbrønd, SRO | C28: 2013 | D28: 10 | E28: 520328 | F28: 52032.8 | G28: kr.
B29: SRO-brønd/kvarterbrønd/sektionsbrønd, Mek./EL | C29: 2013 | D29: 15 | E29: 1271179 | F29: 84745.26667 | G29: kr.
B30: SRO-brønd/kvarterbrønd/sektionsbrønd, Konstruktioner | C30: 2013 | D30: 50 | E30: 4964558 | F30: 99291.16 | G30: kr.
B31: Etageareal vandbehandlingsbygning | C31: 2013 | D31: 75 | E31: 501987 | F31: 6693.16 | G31: kr.
B32: Etageareal vandbehandlingsbygning | C32: 2013 | D32: 30 | E32: 189792 | F32: 6326.4 | G32: kr.
B33: Tillæg for 2013 | F33: =SUM(F8:F32) -> 2160334.377 | G33: kr.
B34: Tillæg for 2010 - 2012 | F34: 11314096.75 | G34: kr.
B35: Samlet tillæg for gennemførte investeringer | F35: =F33+F34 -> 13474431.12 | G35: kr.

Sheet 6. Korrektion investeringer
A1: ='5. Gennemførte investeringer'!A1 -> TREFOR Vand A/S
B4: Fane 6. Korrektion af tillæg for planlagte investeringer
B6: Korrektion af tillæg for planlagte investeringer vedr. 2013
B7: Tillæg for planlagte investeringer i 2013 i prisloft 2013 | C7: 1867570 | D7: kr.
B8: Tillæg for planlagte investeringer i 2013 i prisloft 2014 | C8: 3062810 | D8: kr.
B9: Selskabets faktiske afskrivninger på gennemførte investeringer i 2013 | C9: ='5. Gennemførte investeringer'!F33 -> 2160334.377 | D9: kr.
B10: Korrektion af tillæg for planlagte investeringer vedr. 2013 | C10: =C9-C7+C9-C8 -> -609711.2467 | D10: kr.

Sheet 7. Planlagte investeringer
A1: ='6. Korrektion investeringer'!A1 -> TREFOR Vand A/S
B4: Fane 7. Planlagte investeringer
B6: Tillæg for planlagte investeringer i 2014 og 2015
B7: Beskrivelse af investeringen | C7: Årstal | D7: Std. levetid (år) | E7: Anskaffelses-pris (kr.) | F7: Afskrivning
B8: Råvandsstation komplet montering og boringshus/tørbrønd | C8: 2014 | D8: 30 | E8: 7817000 | F8: =E8/D8 -> 260566.6667 | G8: kr.
B9: Pumpe inkl. stigrør og forerørsforsejlinger mv. | C9: 2014 | D9: 15 | E9: 1790000 | F9: =E9/D9 -> 119333.3333 | G9: kr.
B10: Boring (inkl. etablering, forerør, filter og prøvepumpning) | C10: 2014 | D10: 30 | E10: 9000000 | F10: =E10/D10 -> 300000 | G10: kr.
B11: Elanlæg | C11: 2014 | D11: 20 | E11: 1312000 | F11: 65600 | G11: kr.
B12: SRO anlæg | C12: 2014 | D12: 10 | E12: 4998000 | F12: 499800 | G12: kr.
B13: Ø 50mm < Ledningsnet = Ø110 mm | C13: 2014 | D13: 75 | E13: 1134000 | F13: 15120 | G13: kr.
B14: Etageareal vandbehandlingsbygning | C14: 2014 | D14: 75 | E14: 2146000 | F14: 28613.33333 | G14: kr.
B15: Elanlæg - vandværk | C15: 2014 | D15: 25 | E15: 5150000 | F15: 206000 | G15: kr.
B16: Skyllevand-/slamhåndteringsanlæg - lukkede betonbeholdere | C16: 2014 | D16: 50 | E16: 2532000 | F16: 50640 | G16: kr.
B17: Udpumpningsanlæg, rentvandspumper på vandværk | C17: 2014 | D17: 25 | E17: 3020000 | F17: 120800 | G17: kr.
B18: Ø 50mm < Ledningsnet = Ø110 mm | C18: 2014 | D18: 75 | E18: 94000000 | F18: 1253333.333 | G18: kr.
B19: Afregningsmålere, elektroniske = Ø 110mm (Qn 10) | C19: 2014 | D19: 10 | E19: 1658000 | F19: 165800 | G19: kr.
B20: Køretøjer, personbil | C20: 2014 | D20: 5 | E20: 300000 | F20: 60000 | G20: kr.
B21: Råvandsstation komplet montering og boringshus/tørbrønd | C21: 2015 | D21: 30 | E21: 7817000 | F21: 260566.6667 | G21: kr.
B22: Pumpe inkl. stigrør og forerørsforsejlinger mv. | C22: 2015 | D22: 15 | E22: 1790000 | F22: 119333.3333 | G22: kr.
B23: Boring (inkl. etablering, forerør, filter og prøvepumpning) | C23: 2015 | D23: 30 | E23: 7733000 | F23: 257766.6667 | G23: kr.
B24: Elanlæg | C24: 2015 | D24: 20 | E24: 1312000 | F24: 65600 | G24: kr.
B25: SRO anlæg | C25: 2015 | D25: 10 | E25: 4998000 | F25: 499800 | G25: kr.
B26: Ø 50mm < Ledningsnet = Ø110 mm | C26: 2015 | D26: 75 | E26: 1134000 | F26: 15120 | G26: kr.
B27: Etageareal vandbehandlingsbygning | C27: 2015 | D27: 75 | E27: 2146000 | F27: 28613.33333 | G27: kr.
B28: Elanlæg - vandværk | C28: 2015 | D28: 25 | E28: 5150000 | F28: 206000 | G28: kr.
B29: Skyllevand-/slamhåndteringsanlæg - lukkede betonbeholdere | C29: 2015 | D29: 50 | E29: 2532000 | F29: 50640 | G29: kr.
B30: Udpumpningsanlæg, rentvandspumper på vandværk | C30: 2015 | D30: 25 | E30: 3020000 | F30: 120800 | G30: kr.
B31: Ø 50mm < Ledningsnet = Ø110 mm | C31: 2015 | D31: 75 | E31: 95500000 | F31: 1273333.333 | G31: kr.
B32: Afregningsmålere, elektroniske = Ø 110mm (Qn 10) | C32: 2015 | D32: 10 | E32: 6800000 | F32: 680000 | G32: kr.
B33: Køretøjer, personbil | C33: 2015 | D33: 5 | E33: 300000 | F33: 60000 | G33: kr.
B34: Tillæg for 2014 | F34: =SUMIF(C8:C33,"2014",F8:F33) -> 3145606.667 | G34: kr.
B35: Tillæg for 2015 | F35: =SUMIF(C8:C33,"2015",F8:F33) -> 3637573.333 | G35: kr.
B36: Tillæg i alt | F36: =F34+F35 -> 6783180 | G36: kr.

Sheet 8. 1-1 omkostninger
A1: ='7. Planlagte investeringer'!A1 -> TREFOR Vand A/S
B4: Fane 8. 1:1 omkostninger
B6: Tillæg for budgetterede 1:1 omkostninger i 2015
B7: Betaling til Forsyningssekretariatet | C7: 33000 | D7: kr.
B8: Ejendomsskatter | C8: 400000 | D8: kr.
B9: Tillæg i alt | C9: =SUM(C7:C8) -> 433000 | D9: kr.
B12: Tillæg for afgift for ledningsført vand i 2015
B13: Afgift for ledningsført vand (6,53 kr./m3) | C13: 71143815 | D13: kr.
B14: Tillæg i alt | C14: =SUM(C13:C13) -> 71143815 | D14: kr.
B17: Tillæg for budgetterede nødvendige udgifter til revisorerklæringer samt ordinært medlemskab af DANVA og FVD i 2015
B18: Betaling for ordinært medlemskab af DANVA/FVD | C18: 210000 | D18: kr.
B19: Betaling for revisorerklæringer | C19: 50000 | D19: kr.
B20: Tillæg i alt | C20: =SUM(C18:C19) -> 260000 | D20: kr.
B23: Korrektion af tillæg for faktiske 1:1 omkostninger (inkl. afgift for ledningsført vand, revisorerklæringer og ordinært medlemskab af DANVA/FVD) i 2013
B24: Selskabets faktiske 1:1 omkostninger mv. i 2013, jf. reguleringsregnskabet | C24: 71865441 | D24: kr.
B25: Tillæg for budgetterede 1:1 omkostninger mv. i prisloft 2013 | C25: 71415000 | D25: kr.
B26: Korrektion af tillæg for budgetterede 1:1 omkostninger mv. i 2013 | C26: =C24-C25 -> 450441 | D26: kr.

Sheet 9. Miljø- og servicemål
A1: ='8. 1-1 omkostninger'!A1 -> TREFOR Vand A/S
B4: Fane 9. Driftsomkostninger til miljø- og servicemål
B6: Tillæg for budgetterede driftsomkostninger til miljø- og servicemål i 2015
B7: Grundvandsbeskyttelses/skovrejsning | C7: 3000000 | D7: kr.
B8: VVM-redegørelse | C8: 4250000 | D8: kr.
B9: Behandling af indsatsplan | C9: 4405000 | D9: kr.
B10: DDS | C10: 500000 | D10: kr.
B11: Overvågning af vandløb | C11: 415000 | D11: kr.
B12: Fjernaflæsning | C12: 1824706 | D12: kr.
B13: Tillæg i alt | C13: =SUM(C7:C12) -> 14394706 | D13: kr.
B17: Korrektion af tillæg for faktiske driftsomkostninger til miljø- og servicemål i 2013
B18: Selskabets faktiske driftsomkostninger til miljø- og servicemål i 2013, jf. reguleringsregnskabet | C18: 0 | D18: kr.
B19: Tillæg for budgetterede driftsomkostninger til miljø- og servicemål i prisloft 2013 | C19: 0 | D19: kr.
B20: Korrektion af tillæg for budgetterede driftsomkostninger til miljø- og servicemål i 2013 | C20: =C18-C19 -> 0 | D20: kr.

Sheet 10. Nettofinansielle poster
A1: ='2. Samlet prisloft'!A1 -> TREFOR Vand A/S
B4: Fane 10. Nettofinansielle poster
B6: Tillæg for budgetterede nettofinansielle poster i 2015
B7: Budgetterede renteudgifter og gebyrer i 2015 | C7: 10453000 | D7: kr.
B8: Budgetterede renteindtægter i 2015 | C8: 25000 | D8: kr.
B9: Tillæg/fradrag i alt | C9: =C7-C8 -> 10428000 | D9: kr.
B13: Korrektion af tillæg for faktiske nettofinansielle poster i 2013
B14: Selskabets faktiske nettofinansielle poster i 2013, jf. reguleringsregnskabet | C14: 11962000 | D14: kr.
B15: Tillæg for budgetterede nettofinansielle poster i prisloft 2013 | C15: 9065000 | D15: kr.
B16: Korrektion af tillæg for budgetterede nettofinansielle poster i 2013 | C16: =C14-C15 -> 2897000 | D16: kr.

Sheet 11. Over- eller underdækning
A1: ='1. Forside'!A1 -> TREFOR Vand A/S
B4: Fane 11. Over- eller underdækning til og med 2010
B6: Tillæg/fradrag for over- eller underdækning til og med 2010
B7: Opgjort over- eller underdækning per 31. december 2010 | C7: 39178000 | D7: kr.
B8: Heraf beløb indregnet i prislofterne for 2011 - 2014 | C8: 15853666.75 | D8: kr.
B9: Endnu ikke indregnet over- eller underdækning | C9: =C7-C8 -> 23324333.25 | D9: kr.
B10: Resterende indregningsperiode (fastsat i prisloftet for 2012) | C10: 6 | D10: år
B11: Tillæg/fradrag i alt | C11: =IF(C7=0,0,C9/C10) -> 3887388.876 | D11: kr.

Sheet 12. Kontrol med indtægtsrammen
A1: ='11. Over- eller underdækning'!A1 -> TREFOR Vand A/S
B4: Fane 12. Korrektion for overholdelse af indtægtsrammen i prisloftet for 2013
B6: Samlet opgørelse vedrørende overholdelse af indtægtsrammen i prisloftet for 2013
B7: Indtægtsramme i prisloftet for 2013 | E7: 273877718 | F7: kr.
B8: Ikke anvendt likviditet vedrørende investeringer i 2013
B9: Tillæg for historiske investeringer | C9: 65193210.95 | D9: kr.
B10: Tillæg for gennemførte investeringer i 2011 | C10: 8640531 | D10: kr.
B11: Korrektion af tillæg for planlagte investeringer i 2011 | C11: 2867399 | D11: kr.
B12: Tillæg for planlagte investeringer i 2012 og 2013 | C12: 4105430 | D12: kr.
B13: Indtægter fra tilslutningsbidrag | C13: 5908000 | D13: kr.
B14: Indtægter fra salg af anlægsaktiver | C14: 0 | D14: kr.
B15: Erstatninger vedr. anlægsaktiver mv. | C15: 0 | D15: kr.
B16: Ekstraordinær effektiviseringsgevinst anvendt til investeringer | C16: =E35 -> 8873505 | D16: kr.
B17: Udgifter til investeringer | C17: -95588075 | D17: kr.
B18: Ikke anvendt likviditet vedr. investeringer i alt | C18: =SUM(C9:C17) -> 0.9543016553 | D18: kr. | E18: =IF(C18<0,0,-C18) -> -0.9543016553 | F18: kr.
B19: Ekstraordinære effektiviseringsgevinster anvendt til takstnedsættelse
B20: Ekstraordinær effektiviseringsgevinst anvendt til takstnedsættelse | C20: 0 | D20: kr. | E20: =-C20 -> 0 | F20: kr.
B21: Korrektion af ikke opkrævet tillæg fra 2011 i prisloft 2013
B22: Korrektion af ikke opkrævet tillæg fra 2011 i prisloft 2013 | C22: 0 | D22: kr. | E22: =-C22 -> 0 | F22: kr.
B23: Indtægter fra primære aktiviteter mv.
B24: Indtægter fra kubikmetertakster, faste takster, særbidrag, målergebyrer samt andre takster og gebyrer | C24: 188450548 | D24: kr.
B25: Andre indtægter i prisloftåret, som selskabet har opnået i forbindelse med eller som følge af selskabets primære aktiviteter | C25: 0 | D25: kr.
B26: Indtægter fra primære aktiviteter mv. i alt | C26: =SUM(C24:C25) -> 188450548 | D26: kr. | E26: =-C26 -> -188450548 | F26: kr.
B27: Tillæg/fradrag i prisloftet for 2015 i alt | E27: =E7+E18+E20+E22+E26 -> 85427169.03 | F27: kr.
B31: Oversigt over ekstraordinære effektiviseringsgevinster
C33: 2012 | E33: 2013 | G33: 2014 | I33: 2015 | K33: 2016
B34: Indhentet ekstraordinær effektiviseringsgevinst | C34: 5223601 | D34: kr. | E34: 3649904 | F34: kr. | H34: kr. | J34: kr. | L34: kr.
B35: Gevinst anvendt til investeringer | C35: 0 | D35: kr. | E35: =E34+C34 -> 8873505 | F35: kr. | H35: kr. | J35: kr. | L35: kr.
B36: Gevinst anvendt til takstnedsættelse | C36: 0 | D36: kr. | E36: 0 | F36: kr. | H36: kr. | J36: kr. | L36: kr.
B37: Korrektion for effektiviseringsgevinst der ikke er anvendt inden 4 år | C37: 0 | D37: kr. | E37: 0 | F37: kr. | H37: kr. | J37: kr. | K37: =IF(C38>SUM(C35:I36),C38-SUM(E35:I36),0)*-1 -> 0 | L37: kr.
B38: Resterende gevinst | C38: =C34-C35-C36 -> 5223601 | D38: kr. | E38: =C38+E34-E35-E36 -> 0 | F38: kr. | G38: =E38+G34-G35-G36 -> 0 | H38: kr. | I38: =G38+I34-I35-I36 -> 0 | J38: kr. | K38: =K34-K35-K36+K37 -> 0 | L38: kr.
